Cogmind - Beta 13 X1 @@@ ROGUE MODE // 2023.12.18 @ 16:04:37 Player: Plexion Result: Self-destructed Performance ------------- Evolutions (6) 3000 Regions Visited (21) 4200 Robots Destroyed (277) 1385 Value Destroyed (14927) 14927 Prototype IDs (29) 580 Alien Tech Used (0) 0 Bonus (10881) 10881 TOTAL SCORE: 34973 Bonus ------- High Alert Combat Kills 987 Follower Combat Kills 2931 Entered Garrisons 1600 Used RIF Installer 6000 Aligned with FarCom 300 Friendly Fire -937 Cogmind --------- Core Integrity 1061/1150 Matter 223/300 Energy 139/220 System Corruption 9% Temperature Cool (0) Movement Immobile (Siege) Ox1 Location -4/Factory Parts ------- > --- POWER (2) -------- Light Angular Momentum Engine (fused) Light Antimatter Reactor > --- PROPULSION (4) --- Improved Heavy Treads Armored Heavy Treads > --- UTILITY (10) ----- Advanced Cooling System High-capacity Storage Unit Huge Storage Unit Advanced Targeting Computer Advanced Transmission Jammer Advanced Shield Generator Relay Coupler [NC] (22) Relay Coupler [Sentry] (7) Relay Coupler [Hunter] (25) Long-range Tractor Beam > --- WEAPON (3) ------- Hardcell Cannon Heavy Gauss Cannon Thunder Hammer > --- INVENTORY (25) --- Enhanced Armored Medium Treads Enhanced Armored Medium Treads Centrium Wheel Advanced Cooling System Quantum Capacitor Improved System Shield Relay Coupler [NC] (32) Relay Coupler [NC] (39) Relay Coupler [Demolisher] (27) Relay Coupler [Heavy] (21) Relay Coupler [Behemoth] (15) Disruptor Cannon Heavy Disruptor Cannon Gauss Rifle Gauss Rifle Fusion Bomb Launcher Fusion Bomb Launcher Improved Remote Datajack Peak State ------------ > --- POWER ------------ Light Angular Momentum Engine Light Antimatter Reactor > --- PROPULSION ------- Improved Heavy Treads Armored Heavy Treads > --- UTILITY ---------- Advanced Cooling System High-capacity Storage Unit Huge Storage Unit Advanced Targeting Computer Advanced Transmission Jammer Advanced Shield Generator Relay Coupler [NC] Relay Coupler [Sentry] Relay Coupler [Hunter] Long-range Tractor Beam > --- WEAPON ----------- Hardcell Cannon Heavy Gauss Cannon Fusion Bomb Launcher > --- INVENTORY -------- Enhanced Armored Medium Treads Enhanced Armored Medium Treads Centrium Wheel Advanced Cooling System Quantum Capacitor Improved System Shield Relay Coupler [NC] Relay Coupler [NC] Relay Coupler [Demolisher] Relay Coupler [Heavy] Relay Coupler [Behemoth] Heavy Disruptor Cannon Gauss Rifle Gauss Rifle Fusion Bomb Launcher Improved Remote Datajack Thunder Hammer [Rating: 112] Favorites ----------- Power Light Angular Momentum Engine Engine Light Angular Momentum Engine Power Core Micro Nuclear Core Reactor Light Antimatter Reactor Propulsion Light Treads Treads Light Treads Wheel Wheel Utility High-capacity Storage Unit Device Advanced Transmission Jammer Storage High-capacity Storage Unit Processor Advanced Targeting Computer Hackware Relay Coupler [Grunt] Protection Layered Heavy Armor Plating Weapon Heavy Mass Driver Energy Gun Small Laser Energy Cannon EM Pulse Cannon Ballistic Gun Gauss Rifle Ballistic Cannon Heavy Mass Driver Launcher Mini Grenade Launcher Special Weapon Improved Remote Datajack Impact Weapon Great Maul Build | -11 -10 -10 -10 -9 -8 -8 -8 -8 -8 -8 -7 -7 -6 -6 -6 -6 -5 -5 -5 -5 -4 ------- Run | Jun Mat Min Exi Min Mat Gar Mat Gar Mat Gar Fac Gar Fac Gar Fac Gar Fac Gar Fac Gar Fac Slots Evolved 12 | . . . . . 4 . . . . . 2 . 2 . . . 2 . . . 2 Power 1 | . . . . . . . . . . . . . 1 . . . . . . . . Propulsion 2 | . . . . . 2 . . . . . . . . . . . . . . . . Utility 8 | . . . . . 2 . . . . . 2 . . . . . 2 . . . 2 Weapon 1 | . . . . . . . . . . . . . 1 . . . . . . . . Parts Attached 395 | 7 9 7 . 2 18 23 20 40 15 16 7 27 9 33 4 16 38 45 . 29 30 Power 19 | 1 1 . . . 1 2 . 1 1 1 . 1 1 1 . . . 5 . 1 2 Engine 12 | 1 1 . . . . 2 . . . 1 . . 1 1 . . . 3 . 1 1 Core 6 | . . . . . 1 . . 1 1 . . 1 . . . . . 2 . . . Reactor 1 | . . . . . . . . . . . . . . . . . . . . . 1 Propulsion 44 | 2 1 2 . . 5 2 7 7 4 4 . 4 . 1 . 2 . 1 . 1 1 Treads 43 | 2 1 1 . . 5 2 7 7 4 4 . 4 . 1 . 2 . 1 . 1 1 Leg . | . . . . . . . . . . . . . . . . . . . . . . Wheel 1 | . . 1 . . . . . . . . . . . . . . . . . . . Hover . | . . . . . . . . . . . . . . . . . . . . . . Flight . | . . . . . . . . . . . . . . . . . . . . . . Utility 139 | 1 3 1 . . 5 10 8 15 5 3 5 13 2 11 1 3 16 19 . 6 12 Device 62 | . 1 . . . 2 4 2 3 1 . 3 8 . 3 . . 11 12 . 2 10 Storage 5 | 1 1 1 . . . . . . . . . . . . . . 1 . . . 1 Processor 2 | . . . . . . 1 . . . . . . . . . . . . . . 1 Hackware 41 | . . . . . . 2 1 7 2 1 2 4 2 5 . 3 2 7 . 3 . Protection 29 | . 1 . . . 3 3 5 5 2 2 . 1 . 3 1 . 2 . . 1 . Artifact . | . . . . . . . . . . . . . . . . . . . . . . Weapon 193 | 3 4 4 . 2 7 9 5 17 5 8 2 9 6 20 3 11 22 20 . 21 15 Energy Gun 1 | 1 . . . . . . . . . . . . . . . . . . . . . Energy Cannon 8 | . . . . . . . . 5 . . . 1 . . . 1 1 . . . . Ballistic Gun 12 | 2 2 . . . 4 . . 1 1 . . . . . . . . . . 2 . Ballistic Cannon 37 | . 2 2 . 1 2 5 3 3 2 4 1 2 . . . 2 2 2 . 2 2 Launcher 29 | . . 2 . 1 1 2 2 2 1 3 . 2 . 2 . 3 1 2 . 3 2 Special Weapon 52 | . . . . . . . . 3 . 1 . 2 3 10 2 1 10 8 . 6 6 Impact Weapon 54 | . . . . . . 2 . 3 1 . 1 2 3 8 1 4 8 8 . 8 5 Slashing Weapon . | . . . . . . . . . . . . . . . . . . . . . . Piercing Weapon . | . . . . . . . . . . . . . . . . . . . . . . Special Melee Weapon . | . . . . . . . . . . . . . . . . . . . . . . Unidentified Prototypes 1 | . . . . . . . . . 1 . . . . . . . . . . . . Corrupted Parts 1 | . . . . . . . . . . . . . . . . . . 1 . . . System Corruption 12 | . . . . . . . . . . . . . . . . . . 12 . . . Parts Lost 31 | . 2 2 . . 4 8 3 2 . . . 4 . . . . 1 . . 3 2 Power 5 | . 1 . . . . 2 . 1 . . . 1 . . . . . . . . . Propulsion 10 | . . 2 . . 1 2 1 . . . . 3 . . . . . . . 1 . Utility 11 | . . . . . 2 4 1 . . . . . . . . . 1 . . 1 2 Weapon 5 | . 1 . . . 1 . 1 1 . . . . . . . . . . . 1 . Highest Loss Streak 4 | . 1 2 . . 2 2 2 2 . . . 4 . . . . 1 . . 2 1 To Critical Strikes 1 | . . . . . . . . . . . . . . . . . . . . 1 . Average Slot Usage (%) 83 | . 88 99 100 100 88 90 99 95 96 92 90 81 72 72 73 72 75 75 76 76 81 Engine 8 | . 14 14 14 14 . 7 9 . . . 7 3 5 9 13 13 11 9 11 11 6 Core 2 | . . . . . 8 . . 7 9 8 . 2 6 3 . . . 1 . . . Treads 20 | . 28 21 14 14 17 35 35 36 36 36 30 24 13 13 13 13 11 11 11 11 9 Wheel 1 | . . 5 14 14 9 . . . . . . . . . . . . . . . . Device 5 | . 1 . . . 11 14 5 1 2 4 8 3 2 . . . 7 13 5 5 13 Storage 7 | . 14 14 14 14 9 9 9 9 9 9 7 7 6 6 6 6 5 5 5 5 6 Hackware 12 | . . . . . . . 6 17 6 4 11 17 17 19 20 19 20 14 23 23 17 Protection 6 | . 2 14 14 14 13 6 6 3 18 11 7 7 6 5 6 6 5 5 5 5 2 Ballistic Gun 2 | . 26 . . . 6 . . . . . . . . . . . . . . . 6 Ballistic Cannon 7 | . 1 27 28 28 11 10 17 2 2 8 6 4 6 6 6 5 4 4 5 4 3 Special Weapon 2 | . . . . . . . . 5 3 4 7 3 3 3 1 3 2 2 . 1 2 Impact Weapon 2 | . . . . . . 4 . 3 8 4 . 2 2 2 4 1 2 2 5 3 2 Naked Turns . | . . . . . . . . . . . . . . . . . . . . . . Heaviest Build 184 | 12 34 54 54 54 58 58 56 71 71 79 82 87 104 106 106 106 128 115 109 117 184 Greatest Support 150 | 40 40 40 10 10 60 80 82 102 102 92 90 150 150 150 135 135 120 135 135 135 135 Greatest Overweight (x) 5 | 1 . 5 5 5 5 . . . . . . 2 . . . 1 1 1 . . 1 Average Overweight (x) . | . . 2 5 5 3 . . . . . . . . . . . . . . . . Largest Inventory Capacity 25 | 8 15 20 20 20 20 20 20 20 20 20 20 20 20 20 20 20 20 20 20 20 25 Average Capacity 19 | 7 14 17 20 20 20 20 20 20 20 20 20 20 20 20 20 20 20 20 20 20 21 Most Carried 20 | 3 14 15 16 17 20 20 20 20 20 20 20 20 20 20 20 20 20 20 19 20 20 Average Carried 17 | 2 6 14 15 16 19 19 19 19 19 19 19 19 19 19 20 19 18 18 19 17 18 Final Capacity 25 | 8 15 20 20 20 20 20 20 20 20 20 20 20 20 20 20 20 20 20 20 20 25 Final Carried 20 | 3 14 15 16 17 19 20 20 19 20 20 19 20 20 20 20 20 17 19 19 15 20 Class Distribution -------------------- 51% | Botlord-Mutant 25% | Bothacker-Mutant 19% | Mutant 4% | Scavenger-Mutant Dominant Class ---------------- Mutant | -10/Materials Mutant | -10/Mines Mutant | -10/Exiles Mutant | -9/Mines Mutant | -8/Materials Bothacker-Mutant | -8/Garrison Bothacker-Mutant | -8/Materials Bothacker-Mutant | -8/Garrison Bothacker-Mutant | -8/Materials Bothacker-Mutant | -8/Garrison Bothacker-Mutant | -7/Factory Bothacker-Mutant | -7/Garrison Botlord-Mutant | -6/Factory Botlord-Mutant | -6/Garrison Botlord-Mutant | -6/Factory Botlord-Mutant | -6/Garrison Botlord-Mutant | -5/Factory Botlord-Mutant | -5/Garrison Botlord-Mutant | -5/Factory Botlord-Mutant | -5/Garrison Botlord-Mutant | -4/Factory Resources | -11 -10 -10 -10 -9 -8 -8 -8 -8 -8 -8 -7 -7 -6 -6 -6 -6 -5 -5 -5 -5 -4 ----------- Run | Jun Mat Min Exi Min Mat Gar Mat Gar Mat Gar Fac Gar Fac Gar Fac Gar Fac Gar Fac Gar Fac Matter Collected 11317 | 205 393 383 24 81 572 574 574 1002 250 654 62 813 77 1201 54 640 820 1238 7 708 985 Remotely 2090 | . . . . . . 143 121 45 . . . 382 . 228 . . 150 374 . 195 452 Salvage Created 10264 | . 793 260 . 162 582 474 469 568 111 525 164 268 . 962 . 984 897 1358 . 432 1255 Parts 474 | . 44 22 . 12 33 22 25 37 9 44 4 25 . 36 . 32 19 41 . 13 56 Haulers Intercepted 7 | . 2 . . . 2 . 2 . 1 . . . . . . . . . . . . Recyclers Shooed 1 | . . . . 1 . . . . . . . . . . . . . . . . . Parts Field Recycled . | . . . . . . . . . . . . . . . . . . . . . . Retrieved Matter . | . . . . . . . . . . . . . . . . . . . . . . Parts Self-Destructed . | . . . . . . . . . . . . . . . . . . . . . . Prevented . | . . . . . . . . . . . . . . . . . . . . . . Kills | -11 -10 -10 -10 -9 -8 -8 -8 -8 -8 -8 -7 -7 -6 -6 -6 -6 -5 -5 -5 -5 -4 ------- Run | Jun Mat Min Exi Min Mat Gar Mat Gar Mat Gar Fac Gar Fac Gar Fac Gar Fac Gar Fac Gar Fac Combat Hostiles Destroyed 239 | . 13 13 . 3 13 15 14 21 2 20 3 12 . 28 . 15 13 17 . 13 24 Melee 3 | . . . . . . . . 1 . 1 . . . . . . . . . 1 . Guns 30 | . 13 . . . 3 . . 1 . . . . . . . . . . . . 13 Cannons 112 | . . 7 . . 7 11 10 11 1 11 2 5 . 16 . 7 6 11 . 4 3 AOE 86 | . . 6 . 3 3 4 4 7 1 8 . 7 . 11 . 8 6 6 . 6 6 Classes Destroyed 21 | . 7 2 . 1 2 3 2 . . . . . . 1 . 2 . . . 1 . Worker 9 | . 4 1 . . 2 . . . . . . . . . . . 1 . . . 1 Builder 3 | . . . . . . . 1 . . . . . . . . . 1 . . . 1 Tunneler 6 | . 1 1 . 2 . . . . . . 1 . . . . . . . . . 1 Hauler 7 | . 2 . . . 2 . 2 . 1 . . . . . . . . . . . . Recycler 6 | . . . . 1 1 . . . . . . . . . . . 3 . . . 1 Mechanic 2 | . 1 . . . . . . . . . . . . . . . . . . . 1 Operator 4 | . 2 . . . 1 . . . . . . . . . . . . . . . 1 Watcher 2 | . 1 . . . . . . . . . . . . . . 1 . . . . . Swarmer 78 | . . 6 . 3 3 . 2 10 1 7 . . . 12 . 8 4 8 . 6 8 Cutter 5 | . . . . . . 2 . . . . . 3 . . . . . . . . . Saboteur 2 | . . . . . . . . . . . . . . . . 2 . . . . . Grunt 80 | . 13 5 . . 7 8 4 4 . 3 2 3 . 10 . 1 3 4 . 4 9 Brawler 4 | . . . . . . 1 . . . 1 . . . 1 . . . . . . 1 Duelist 5 | . . . . . 1 . . 1 . . 1 . . 2 . . . . . . . Sentry 33 | . . . . . 2 2 7 3 1 7 . 3 . 2 . 1 . 3 . 2 . Specialist 1 | . . . . . . . . . . . . . . 1 . . . . . . . Hunter 7 | . . . . . . . 1 . . . . . . . . 2 2 2 . . . Programmer 21 | . . . . . . 2 . 3 . 2 . 3 . . . . 4 1 . . 6 Behemoth 1 | . . . . . . . . . . . . . . . . 1 . . . . . Striker 1 | . . . . . . . . . . . . . . . . . . . . 1 . Assembled 2 | . . 2 . . . . . . . . . . . . . . . . . . . Best Kill Streak 12 | . 3 4 . 3 6 9 4 7 2 5 2 7 . 12 . 6 4 6 . 4 6 Combat Bots Only 12 | . 2 3 . 3 4 9 3 7 1 5 2 7 . 12 . 6 4 6 . 4 5 Max Kills in Single Turn 7 | . 1 3 . 3 5 1 2 2 2 3 1 2 . 4 . 4 2 2 . 4 7 Gunslinging . | . . . . . . . . . . . . . . . . . . . . . . Exploded 4 | . . 3 . 3 3 1 2 2 1 3 . 2 . 4 . 4 2 2 . 4 4 Melee 1 | . . . . . . . . 1 . 1 . . . . . . . . . 1 . Uniques/NPCs Destroyed . | . . . . . . . . . . . . . . . . . . . . . . Combat | -11 -10 -10 -10 -9 -8 -8 -8 -8 -8 -8 -7 -7 -6 -6 -6 -6 -5 -5 -5 -5 -4 -------- Run | Jun Mat Min Exi Min Mat Gar Mat Gar Mat Gar Fac Gar Fac Gar Fac Gar Fac Gar Fac Gar Fac Damage Taken 14009 | . 680 199 . 76 785 865 777 965 57 570 326 1544 . 1096 11 696 1067 1073 . 936 2286 Core 1224 | . 138 . . 12 64 98 107 152 . 60 21 132 . 96 11 31 44 93 . 76 89 Absorbed by Shields 1505 | . . . . . . . . . 9 152 22 102 . . . . 89 355 . . 776 Reduced by Siege Mode 341 | . . . . . . . . . . . . . . 9 . 30 57 37 . . 208 Ignored by Resistances 50 | . . . . . . . . . . . . . . . . . . . . . 50 Regen/Repaired (Parts) 1402 | . . . . . 112 . . . . . . . 198 8 . . 156 . . . 928 Core Remaining (%) 65 | 100 . . . 40 . . . . . 12 . 78 . . . 83 . . . 78 . Volleys Fired 912 | . 80 44 4 6 53 45 56 100 10 61 26 45 9 78 4 47 52 82 . 35 75 Largest 2 | . 2 2 1 2 2 2 2 2 1 1 1 1 1 1 1 1 1 1 . 1 2 Hottest 126 | . 40 70 35 70 70 70 70 70 61 61 61 75 75 75 75 110 110 75 . 75 126 Shots Fired 1264 | . 160 84 4 11 104 85 109 117 10 61 26 45 9 78 4 49 54 81 1 37 135 Gun 307 | . 160 . . . 46 . . 7 . . . . . . . . . . . . 94 Cannon 690 | . . 80 4 10 57 79 105 69 3 54 18 29 2 42 1 29 34 33 1 14 26 Launcher 59 | . . 4 . 1 1 6 4 6 1 4 . 9 . 5 . 4 3 6 . 2 3 Special 208 | . . . . . . . . 35 6 3 8 7 7 31 3 16 17 42 . 21 12 Kinetic 940 | . 160 80 4 10 103 79 105 31 3 54 18 29 2 42 1 24 27 33 1 14 120 Thermal . | . . . . . . . . . . . . . . . . . . . . . . Explosive 59 | . . 4 . 1 1 6 4 6 1 4 . 9 . 5 . 4 3 6 . 2 3 Electromagnetic 57 | . . . . . . . . 45 . . . . . . . 5 7 . . . . Robot Hit Streak 47 | . 20 8 . 2 17 11 20 17 7 11 18 7 8 11 2 6 15 22 . 8 47 Robot Miss Streak 4 | . 4 4 . 1 4 4 4 3 . 2 3 2 . 2 1 2 3 2 1 2 2 Penetration Max 1 | . . . . . . . . . . 1 1 1 . . . . . . . . 1 Secondary Targets 1 | . . . . . . . . . . . . . . . . . . . . . 1 Max Gunslinging Chain 1 | . . . . . . . . . . . . . . . . . . . . . 1 Shots Hit Robots 915 | . 110 22 . 5 71 55 75 87 6 40 19 29 7 68 3 43 42 76 . 37 120 Core Hits 415 | . 50 21 . 4 27 37 28 27 6 25 6 31 . 36 . 14 12 19 . 11 61 Critical Kills 16 | . 1 . . . . . . . 1 10 2 1 . . . . . . . . 1 Critical Parts Destroyed 42 | . . . . . . . . . . 14 6 4 . 1 . 4 1 5 . 3 4 Critical Strikes 99 | . 1 2 . . 1 4 9 3 1 25 8 5 . 7 . 6 2 13 1 5 6 Destroy 40 | . 1 . . . . . . . 1 24 7 5 . . . . . . . . 2 Blast 39 | . . 2 . . 1 4 9 2 . . . . . 6 . 2 1 8 1 2 1 Corrupt 1 | . . . . . . . . 1 . . . . . . . . . . . . . Smash 19 | . . . . . . . . . . 1 1 . . 1 . 4 1 5 . 3 3 Melee Attacks 251 | . . . . . . 19 . 10 . 11 2 6 9 35 7 37 21 35 1 31 27 Impact 251 | . . . . . . 19 . 10 . 11 2 6 9 35 7 37 21 35 1 31 27 Slashing . | . . . . . . . . . . . . . . . . . . . . . . Piercing . | . . . . . . . . . . . . . . . . . . . . . . Sneak Attacks 16 | . . . . . . . . 1 . . . . . 1 . . 4 2 . 8 . Combat Hostiles 10 | . . . . . . . . 1 . . . . . 1 . . . . . 8 . Follow-up Attacks . | . . . . . . . . . . . . . . . . . . . . . . Damage Inflicted 32296 | . 1098 741 . 264 1432 1777 1583 1993 104 1296 261 1403 8 3965 63 3266 2088 4041 88 2499 4326 Guns 3588 | . 1048 . . . 594 . . 90 . . . . . . . . . . . . 1856 Cannons 14485 | . . 394 . 81 631 990 1340 1211 17 723 206 666 . 2254 63 1254 1380 1764 88 675 748 Explosions 7935 | . . 326 . 165 195 711 243 571 87 535 . 737 . 938 . 473 350 457 . 852 1295 Melee 6130 | . . . . . . 76 . 113 . 38 49 . . 773 . 1539 332 1820 . 972 418 Ramming 158 | . 50 21 . 18 12 . . 8 . . 6 . 8 . . . 26 . . . 9 Kinetic 16932 | . 1048 394 . 81 1225 990 1340 521 17 723 206 666 . 2254 63 1144 1129 1764 88 675 2604 Thermal 334 | . . . . . . . . . . . . . . . . . . . . . 334 Explosive 7601 | . . 326 . 165 195 711 243 571 87 535 . 737 . 938 . 473 350 457 . 852 961 Electromagnetic 1141 | . . . . . . . . 780 . . . . . . . 110 251 . . . . Impact 6130 | . . . . . . 76 . 113 . 38 49 . . 773 . 1539 332 1820 . 972 418 Slashing . | . . . . . . . . . . . . . . . . . . . . . . Piercing . | . . . . . . . . . . . . . . . . . . . . . . Highest Corruption 12 | . . . . . 2 5 5 8 . . . 3 . 2 2 2 3 12 7 7 9 Average Corruption 4 | . . . . . 2 2 5 7 . . . 2 . 1 2 2 2 6 7 7 6 Corruption Purged 18 | . . . . . . . . 8 . . . . . . . . 2 8 . . . Corruption Blocked . | . . . . . . . . . . . . . . . . . . . . . . Effects 233 | . . . . . . 18 14 52 . . . 2 . 7 7 13 22 29 5 38 26 Message Errors 55 | . . . . . . 2 4 8 . . . . . 3 2 4 7 10 1 8 6 Matter Fused 60 | . . . . . . 5 3 13 . . . 2 . 2 1 3 4 5 2 10 10 Heat Flow Errors 17 | . . . . . . . 1 4 . . . . . 1 2 . 2 2 . 5 . Energy Discharges 27 | . . . . . . 4 1 9 . . . . . 1 . 3 2 2 . 1 4 Parts Rejected 3 | . . . . . . . 1 . . . . . . . . . 1 . . . 1 Parts Fused 2 | . . . . . . 1 . . . . . . . . . . . . . . 1 Data Loss (minor) 34 | . . . . . . 2 2 7 . . . . . . 2 1 2 7 . 7 4 Data Loss (major) 9 | . . . . . . 1 . 3 . . . . . . . . 1 2 1 1 . Misfires 13 | . . . . . . 2 1 3 . . . . . . . 2 2 . 1 2 . Alerts 10 | . . . . . . 1 1 3 . . . . . . . . 1 . . 4 . Weapon Failures 3 | . . . . . . . . 2 . . . . . . . . . 1 . . . Overload Shots . | . . . . . . . . . . . . . . . . . . . . . . Overflow Damage 3862 | . . 6 . 18 9 36 . 106 . 81 49 77 . 294 . 826 556 1143 4 403 254 Projectiles 910 | . . . . . 3 . . 2 . . . 77 . 162 . 91 288 231 4 . 52 Explosions 319 | . . 6 . 18 6 . . 27 . 43 . . . . . 14 16 9 . 119 61 Melee 2633 | . . . . . . 36 . 77 . 38 49 . . 132 . 721 252 903 . 284 141 Knockbacks 115 | . 1 4 . 1 7 10 14 3 . 10 8 2 . 11 1 9 14 7 . . 13 Impact 11 | . 1 . . 1 . . . . . . . . . 3 . 1 3 . . . 2 Kinetic 95 | . . 4 . . 7 10 11 3 . 9 7 2 . 8 1 8 9 6 . . 10 Secondary 9 | . . . . . . . 3 . . 1 1 . . . . . 2 1 . . 1 Self-Inflicted Damage 805 | . . 27 . 49 . 38 . 30 . 60 . 175 . 131 . 52 34 98 . . 111 Shots 25 | . . 1 . 1 . 1 . 2 . 2 . 6 . 4 . 1 2 3 . . 2 Rammed 20 | . 7 5 . 1 1 . . 1 . . 1 . 1 . . . 2 . . . 1 Targets Rammed 21 | . 8 5 . 1 1 . . 1 . . 1 . 1 . . . 2 . . . 1 Kicked . | . . . . . . . . . . . . . . . . . . . . . . Crushed 1 | . 1 . . . . . . . . . . . . . . . . . . . . Highest Temperature 460 | . 36 130 . 36 246 196 251 253 460 249 143 240 63 276 236 346 291 173 62 261 . Average Temperature 77 | . 9 41 . 12 64 92 35 66 171 65 55 75 34 107 90 94 78 79 32 97 . Received Heat Transfer 3005 | . 396 70 . . 333 333 342 123 . 169 115 393 . 135 . 18 54 120 . 72 332 Effects 8 | . . . . . . . . . 3 2 . . . 2 . . . . . 1 . Shutdowns 1 | . . . . . . . . . 1 . . . . . . . . . . . . Energy Bleed 3 | . . . . . . . . . 1 . . . . 1 . . . . . 1 . Interference 3 | . . . . . . . . . . 2 . . . 1 . . . . . . . Short Circuit 1 | . . . . . . . . . 1 . . . . . . . . . . . . Siege Activations 20 | . . . . . . . . . . . . . . 5 . 3 4 2 . . 6 Total Turns 377 | . . . . . . . . . . . . . . 43 . 29 70 55 . . 180 Longest Duration 67 | . . . . . . . . . . . . . . 15 . 17 35 45 . . 67 Robots Corrupted 2 | . . . . . . . . 1 . . . . . . . . 1 . . . . Combat Hostiles 2 | . . . . . . . . 1 . . . . . . . . 1 . . . . Parts Fried 54 | . . . . . . 2 . 6 . 1 3 . . 5 . 11 9 14 . 1 2 Impact Corruptions 55 | . . . . . . 1 . 2 . 1 1 . . 6 . 14 10 12 . 4 4 Robots Melted . | . . . . . . . . . . . . . . . . . . . . . . Combat Hostiles . | . . . . . . . . . . . . . . . . . . . . . . Parts Melted 4 | . . . . . . . . . . . . . . 1 . 1 . 1 . . 1 Heat Transferred 250 | . . . . . . . . . . . . . . . . . . . . . 250 Parts Sabotaged . | . . . . . . . . . . . . . . . . . . . . . . Parts Stolen . | . . . . . . . . . . . . . . . . . . . . . . Parts Stripped . | . . . . . . . . . . . . . . . . . . . . . . Power Chain Reactions . | . . . . . . . . . . . . . . . . . . . . . . Missiles Intercepted . | . . . . . . . . . . . . . . . . . . . . . . Alert | -11 -10 -10 -10 -9 -8 -8 -8 -8 -8 -8 -7 -7 -6 -6 -6 -6 -5 -5 -5 -5 -4 ------- Run | Jun Mat Min Exi Min Mat Gar Mat Gar Mat Gar Fac Gar Fac Gar Fac Gar Fac Gar Fac Gar Fac Peak Influence 982 | . 191 243 . 112 193 826 543 947 473 982 564 806 439 576 527 849 513 577 315 449 358 Initial 515 | . . 13 . . 43 3 402 313 461 244 515 394 422 5 302 252 445 165 302 220 235 Average 373 | . 64 74 . 103 88 524 417 631 277 623 528 658 198 288 387 660 324 369 308 368 253 Maximum Alert Level 3 | . . 1 . . . 3 2 3 2 3 2 3 2 2 2 3 2 2 1 2 1 Low Security (%) 26 | 100 100 92 . 100 100 13 2 . 36 . . . 66 31 . . 3 21 . . 18 Level 1 31 | . . 7 . . . 13 33 24 56 20 . 3 9 35 77 10 67 29 100 72 81 Level 2 27 | . . . . . . 50 63 21 7 25 100 55 24 32 22 48 29 49 . 27 . Level 3 13 | . . . . . . 23 . 54 . 53 . 40 . . . 40 . . . . . Level 4 . | . . . . . . . . . . . . . . . . . . . . . . Level 5 . | . . . . . . . . . . . . . . . . . . . . . . High Security . | . . . . . . . . . . . . . . . . . . . . . . Max Security . | . . . . . . . . . . . . . . . . . . . . . . Squads Dispatched 25 | . 3 . . . 1 . 3 . 3 . 1 . 1 . 2 . 6 . . . 5 Investigation 4 | . . . . . 1 . . . . . . . . . . . 2 . . . 1 Extermination 8 | . . . . . . . . . . . . . 1 . . . 3 . . . 4 Reinforcement 7 | . 3 . . . . . . . 1 . . . . . 2 . 1 . . . . Assault . | . . . . . . . . . . . . . . . . . . . . . . Garrison 6 | . . . . . . . 3 . 2 . 1 . . . . . . . . . . Intercept . | . . . . . . . . . . . . . . . . . . . . . . Searches Triggered . | . . . . . . . . . . . . . . . . . . . . . . Construction Impeded 1 | . . . . . . . . . . . . . . . . . 1 . . . . Haulers Reinforced . | . . . . . . . . . . . . . . . . . . . . . . Active Scanning Responses . | . . . . . . . . . . . . . . . . . . . . . . Cargo Convoy Interrupts . | . . . . . . . . . . . . . . . . . . . . . . Alert ID Control Effect 41 | . . . . . . . . . . . . . . 4 . 2 16 3 . 16 . Stealth | -11 -10 -10 -10 -9 -8 -8 -8 -8 -8 -8 -7 -7 -6 -6 -6 -6 -5 -5 -5 -5 -4 --------- Run | Jun Mat Min Exi Min Mat Gar Mat Gar Mat Gar Fac Gar Fac Gar Fac Gar Fac Gar Fac Gar Fac Distress Signals 13 | . 1 1 . . 2 . 3 1 1 . 1 . . . 1 1 1 . . . . Communications Jammed 59 | . . . . . . . . . . . . . . . . . 40 . . . 19 Distress Signals 58 | . . . . . . . . . . . . . . . . . 40 . . . 18 Times Spotted 461 | . 24 12 . 3 26 33 24 42 9 30 5 20 1 41 6 32 42 32 . 36 43 Peak Tracking Total 12 | . 3 3 9 3 4 7 6 7 4 8 3 6 1 12 2 5 6 3 . 6 6 Tactical Retreats 34 | . . 1 . . 4 8 2 1 . 4 . 2 . . . . 1 1 . 8 2 Traps | -11 -10 -10 -10 -9 -8 -8 -8 -8 -8 -8 -7 -7 -6 -6 -6 -6 -5 -5 -5 -5 -4 ------- Run | Jun Mat Min Exi Min Mat Gar Mat Gar Mat Gar Fac Gar Fac Gar Fac Gar Fac Gar Fac Gar Fac Traps Triggered 6 | . . . . . 2 . . . . . . 1 . . . . . 2 . 1 . Indirectly . | . . . . . . . . . . . . . . . . . . . . . . Trap Hack Attempts . | . . . . . . . . . . . . . . . . . . . . . . Triggered . | . . . . . . . . . . . . . . . . . . . . . . Disarmed . | . . . . . . . . . . . . . . . . . . . . . . Reprogrammed . | . . . . . . . . . . . . . . . . . . . . . . Reused . | . . . . . . . . . . . . . . . . . . . . . . Traps Extracted . | . . . . . . . . . . . . . . . . . . . . . . Installed . | . . . . . . . . . . . . . . . . . . . . . . Triggered . | . . . . . . . . . . . . . . . . . . . . . . Machines | -11 -10 -10 -10 -9 -8 -8 -8 -8 -8 -8 -7 -7 -6 -6 -6 -6 -5 -5 -5 -5 -4 ---------- Run | Jun Mat Min Exi Min Mat Gar Mat Gar Mat Gar Fac Gar Fac Gar Fac Gar Fac Gar Fac Gar Fac Machines Disabled 63 | . . 3 2 . 1 3 2 4 . 7 . 1 . 3 1 3 13 5 . 5 10 Max in Single Turn 4 | . . 2 1 . 1 1 1 1 . 2 . 1 . 1 . 1 1 1 . 1 4 Garrison Relay 23 | . . . . . . 2 . 3 . 3 . 1 . 2 . 3 . 5 . 4 . Phase Generator 1 | . . . . . . . . . . 1 . . . . . . . . . . . Machines Repaired . | . . . . . . . . . . . . . . . . . . . . . . Machines Sabotaged . | . . . . . . . . . . . . . . . . . . . . . . Overloaded Fab Kills . | . . . . . . . . . . . . . . . . . . . . . . Hacking | -11 -10 -10 -10 -9 -8 -8 -8 -8 -8 -8 -7 -7 -6 -6 -6 -6 -5 -5 -5 -5 -4 --------- Run | Jun Mat Min Exi Min Mat Gar Mat Gar Mat Gar Fac Gar Fac Gar Fac Gar Fac Gar Fac Gar Fac Machines Accessed 67 | . 4 . 2 . 7 2 5 3 2 2 1 2 8 2 3 1 9 2 2 3 7 Terminals 46 | . 4 . . . 4 2 3 3 1 2 . 2 6 2 1 1 4 2 1 3 5 Fabricators 5 | . . . . . . . . . . . . . . . 1 . 3 . . . 1 Repair Stations 4 | . . . . . 1 . . . . . . . 1 . . . 1 . . . 1 Recycling Units 2 | . . . . . 1 . 1 . . . . . . . . . . . . . . Scanalyzers . | . . . . . . . . . . . . . . . . . . . . . . Garrison Access 8 | . . . . . 1 . 1 . 1 . 1 . 1 . 1 . 1 . 1 . . Total Hacks 138 | . 11 . 2 . 19 3 6 5 2 5 2 3 18 4 7 3 19 5 3 6 15 Successful 57 | . 2 . 2 . 9 2 3 2 1 1 2 2 7 2 2 . 9 1 2 2 6 Failed 81 | . 9 . . . 10 1 3 3 1 4 . 1 11 2 5 3 10 4 1 4 9 Catastrophic 14 | . 2 . . . 1 1 . 1 1 1 . . 1 1 . . 3 . . . 2 Database Lockouts . | . . . . . . . . . . . . . . . . . . . . . . Manual 56 | . 10 . 1 . 13 1 4 . 1 . . . 4 . 2 . 11 . . 1 8 Terminals 101 | . 11 . . . 13 3 4 5 1 5 . 3 15 4 3 3 9 5 2 6 9 Fabricators 14 | . . . . . . . . . . . . . . . 3 . 8 . . . 3 Repair Stations 8 | . . . . . 2 . . . . . . . 2 . . . 1 . . . 3 Recycling Units 3 | . . . . . 2 . 1 . . . . . . . . . . . . . . Scanalyzers . | . . . . . . . . . . . . . . . . . . . . . . Garrison Access 10 | . . . . . 2 . 1 . 1 . 2 . 1 . 1 . 1 . 1 . . Terminal Hacks 30 | . 2 . 2 . 4 2 1 2 . 1 . 2 4 2 . . 2 1 1 2 2 Record 1 | . . . 1 . . . . . . . . . . . . . . . . . . Robot Schematic 1 | . . . . . . . . . . . . . . . . . . . 1 . . Robot Analysis 2 | . 1 . . . 1 . . . . . . . . . . . . . . . . Open Door 3 | . . . . . . . . 1 . . . . . 1 . . . . . 1 . Branch Access Points 3 | . . . . . . . . . . . . . 1 . . . 1 . . . 1 Emergency Access Points 6 | . . . . . . 1 . . . 1 . 1 . 1 . . . 1 . 1 . Terminal Index 2 | . 1 . . . . . . . . . . . 1 . . . . . . . . Unreport Threat 3 | . . . . . 2 . 1 . . . . . . . . . . . . . . Locate Traps 1 | . . . . . 1 . . . . . . . . . . . . . . . . Recall Extermination 1 | . . . . . . . . . . . . . 1 . . . . . . . . Hauler Manifests 2 | . . . . . . . . . . . . . 1 . . . 1 . . . . Zone Layout 1 | . . . . . . . . . . . . . . . . . . . . . 1 Garrison Registry 3 | . . . . . . 1 . 1 . . . 1 . . . . . . . . . Derelict Proto ID Bank 1 | . . . 1 . . . . . . . . . . . . . . . . . . Fabricator Hacks 3 | . . . . . . . . . . . . . . . 1 . 2 . . . . Network Status 2 | . . . . . . . . . . . . . . . 1 . 1 . . . . Build 1 | . . . . . . . . . . . . . . . . . 1 . . . . Repair Station Hacks 5 | . . . . . 2 . . . . . . . 1 . . . . . . . 2 Scan Component 3 | . . . . . 1 . . . . . . . 1 . . . . . . . 1 Repair 2 | . . . . . 1 . . . . . . . . . . . . . . . 1 Recycling Unit Hacks . | . . . . . . . . . . . . . . . . . . . . . . Scanalyzer . | . . . . . . . . . . . . . . . . . . . . . . Garrison Access Hacks 9 | . . . . . 1 . 1 . 1 . 2 . 1 . 1 . 1 . 1 . . Unlock Access 8 | . . . . . 1 . 1 . 1 . 1 . 1 . 1 . 1 . 1 . . Coupler Status 1 | . . . . . . . . . . . 1 . . . . . . . . . . Unauthorized Hacks 10 | . . . . . 2 . 1 . . . . . 1 . . . 4 . . . 2 Terminals 3 | . . . . . 1 . . . . . . . 1 . . . . . . . 1 Track 1 | . . . . . . . . . . . . . . . . . . . . . 1 Botnet 1 | . . . . . . . . . . . . . 1 . . . . . . . . Disrupt 1 | . . . . . 1 . . . . . . . . . . . . . . . . Fabricators 4 | . . . . . . . . . . . . . . . . . 4 . . . . Prioritize 1 | . . . . . . . . . . . . . . . . . 1 . . . . Liberate 2 | . . . . . . . . . . . . . . . . . 2 . . . . Haulers 1 | . . . . . . . . . . . . . . . . . 1 . . . . Repair Stations 1 | . . . . . . . . . . . . . . . . . . . . . 1 Mechanics 1 | . . . . . . . . . . . . . . . . . . . . . 1 Recycling Units 2 | . . . . . 1 . 1 . . . . . . . . . . . . . . Reject 2 | . . . . . 1 . 1 . . . . . . . . . . . . . . Scanalyzers . | . . . . . . . . . . . . . . . . . . . . . . Garrison Access . | . . . . . . . . . . . . . . . . . . . . . . Data Cores Recovered 1 | . . . . . 1 . . . . . . . . . . . . . . . . Used . | . . . . . . . . . . . . . . . . . . . . . . Hacking Detections 56 | . 4 . . . 5 2 3 2 2 2 1 2 8 2 3 1 6 2 1 3 7 Full Trace Events 6 | . . . . . . . . 1 . . . . . 1 . . 1 1 . 1 1 Feedback Events 1 | . . . . . . . . . . . . . . . . . 1 . . . . Corruption 1 | . . . . . . . . . . . . . . . . . 1 . . . . Feedback Blocked . | . . . . . . . . . . . . . . . . . . . . . . Robot Schematics Acquired 1 | . . . . . . . . . . . . . . . . . . . 1 . . Robots Built 3 | . . . . . . . . . . . . . . . . . 3 . . . . Authchips . | . . . . . . . . . . . . . . . . . . . . . . Time 169 | . . . . . . . . . . . . . . . . . 169 . . . . Total Robot Build Rating 18 | . . . . . . . . . . . . . . . . . 18 . . . . Part Schematics Acquired . | . . . . . . . . . . . . . . . . . . . . . . Parts Built . | . . . . . . . . . . . . . . . . . . . . . . Authchips . | . . . . . . . . . . . . . . . . . . . . . . Time . | . . . . . . . . . . . . . . . . . . . . . . Total Part Build Rating . | . . . . . . . . . . . . . . . . . . . . . . Parts Repaired 2 | . . . . . 1 . . . . . . . . . . . . . . . 1 Time 60 | . . . . . 26 . . . . . . . . . . . . . . . 34 Parts Recycled . | . . . . . . . . . . . . . . . . . . . . . . Recycled Matter . | . . . . . . . . . . . . . . . . . . . . . . Retrieved Matter . | . . . . . . . . . . . . . . . . . . . . . . Retrieved Components . | . . . . . . . . . . . . . . . . . . . . . . Parts Scanalyzed . | . . . . . . . . . . . . . . . . . . . . . . Part Schematics Acquired . | . . . . . . . . . . . . . . . . . . . . . . Parts Damaged . | . . . . . . . . . . . . . . . . . . . . . . Bothacking | -11 -10 -10 -10 -9 -8 -8 -8 -8 -8 -8 -7 -7 -6 -6 -6 -6 -5 -5 -5 -5 -4 ------------ Run | Jun Mat Min Exi Min Mat Gar Mat Gar Mat Gar Fac Gar Fac Gar Fac Gar Fac Gar Fac Gar Fac Used RIF Installer 12 | . . . . . . 2 . 2 . 2 . 1 . 1 . 1 . 1 . 2 . Coupler Efficiency 1 | . . . . . . . . . . 1 . . . . . . . . . . . Hotswap 1 | . . . . . . . . . . . . . . . . . . . . 1 . Code Merge 1 | . . . . . . . . . . . . . . . . . . 1 . . . Threat Obfuscator 3 | . . . . . . 1 . . . . . 1 . . . 1 . . . . . Watcher Feeds 1 | . . . . . . . . 1 . . . . . . . . . . . . . Patrol Navigation 1 | . . . . . . . . 1 . . . . . . . . . . . . . Alert ID Control 1 | . . . . . . . . . . 1 . . . . . . . . . . . Autooverride 2 | . . . . . . . . . . . . . . 1 . . . . . 1 . Robots Hacked 107 | . . . . . . . . 17 2 2 5 4 2 13 1 6 15 18 . 14 8 Non-combat 16 | . . . . . . . . . 1 . 1 . 2 . . . 6 . . . 6 Combat 91 | . . . . . . . . 17 1 2 4 4 . 13 1 6 9 18 . 14 2 Autooverrided 9 | . . . . . . . . . . . . . . 2 . 1 1 3 . 2 . Robot Hacks Applied 112 | . . . . . . . . 17 4 2 5 4 5 12 2 6 14 17 . 13 11 find_dsf 1 | . . . . . . . . . . . . . . . . . . . . . 1 drop_inventory 6 | . . . . . . . . . . . 1 . . . . . 3 . . . 2 purge_threat 4 | . . . . . . . . . 2 . . . 2 . . . . . . . . block_reporting 3 | . . . . . . . . . . . . . 1 . . . . . . . 2 map_route 3 | . . . . . . . . . . . . . . . . . 2 . . . 1 find_garrison 3 | . . . . . . . . . . . 1 . . . 1 . . . . . 1 scatter_targeting 4 | . . . . . . . . 1 . . . . . . 1 . . . . 2 . overload_power 1 | . . . . . . . . . . . . . . . . . . 1 . . . amplify_resonance 4 | . . . . . . . . . . . . . . 1 . . 1 1 . 1 . wipe_record 4 | . . . . . . . . . . . . 2 . 1 . 1 . . . . . reboot_system 23 | . . . . . . . . 5 . . . . . 3 . 2 2 5 . 6 . overwrite_iff 16 | . . . . . . . . 6 . 2 . . . 3 . 1 . 4 . . . formatsys_low 6 | . . . . . . . . . 1 . . . 2 . . . 1 . . . 2 formatsys_high 34 | . . . . . . . . 5 1 . 3 2 . 4 . 2 5 6 . 4 2 Relay Couplers Released 95 | . . . . . . 9 . 13 . 12 . 5 . 7 . 12 . 21 . 16 . Machine Destruction 95 | . . . . . . 9 . 13 . 12 . 5 . 7 . 12 . 21 . 16 . Attached 35 | . . . . . . . . 6 2 1 2 3 1 5 . 3 2 7 . 3 . Merged Code Value 54 | . . . . . . . . . . . . . . . . . . . . 54 . Fabnet Peak Effective % . | . . . . . . . . . . . . . . . . . . . . . . Robots Rewired 16 | . . . . . . 2 . 2 . . . . . 5 . 1 . 6 . . . Allies Hacked 1 | . . . . . . . . . . . . . . . . . 1 . . . . Hacks Repelled . | . . . . . . . . . . . . . . . . . . . . . . Allies | -11 -10 -10 -10 -9 -8 -8 -8 -8 -8 -8 -7 -7 -6 -6 -6 -6 -5 -5 -5 -5 -4 -------- Run | Jun Mat Min Exi Min Mat Gar Mat Gar Mat Gar Fac Gar Fac Gar Fac Gar Fac Gar Fac Gar Fac Total Allies 90 | . . . . 3 . 2 . 13 2 2 3 2 2 16 . 5 10 18 . 8 4 Largest Group 9 | . . . . 3 3 2 . 5 5 4 2 2 2 6 5 4 9 6 4 5 2 Highest-Rated Group 433 | . . . . 40 40 51 . 104 88 63 64 60 49 433 404 294 298 260 164 181 49 Highest-Rated Ally 148 | . . . . 16 16 31 . 31 25 21 32 32 26 148 148 148 49 49 41 46 49 Total Orders 14 | . . . . . . . . 2 . . . . 1 8 . 1 1 . . . 1 STAY 3 | . . . . . . . . 1 . . . . . 2 . . . . . . . ROAM 4 | . . . . . . . . . . . . . . 3 . 1 . . . . . FOLLOW 3 | . . . . . . . . 1 . . . . . 2 . . . . . . . AID 4 | . . . . . . . . . . . . . 1 1 . . 1 . . . 1 Ally Attacks 562 | . . . . . 23 22 . 73 16 20 1 4 . 76 34 97 61 63 . 68 4 Total Damage 15403 | . . . . . 269 518 . 1249 275 207 15 213 . 2396 1641 2525 2559 1618 . 1791 127 Kills 114 | . . . . . 4 8 . 7 5 4 . . . 11 12 19 19 8 . 17 . Allies Corrupted 4 | . . . . . . . . . . . . . . 2 . . 1 1 . . . Allies Melted 3 | . . . . . . . . . . . . . . 2 . . . . . 1 . Intel | -11 -10 -10 -10 -9 -8 -8 -8 -8 -8 -8 -7 -7 -6 -6 -6 -6 -5 -5 -5 -5 -4 ------- Run | Jun Mat Min Exi Min Mat Gar Mat Gar Mat Gar Fac Gar Fac Gar Fac Gar Fac Gar Fac Gar Fac Robot Analysis Total 2 | . 1 . . . 1 . . . . . . . . . . . . . . . . Derelict Logs Recovered 2 | . . 2 . . . . . . . . . . . . . . . . . . . Drone Launches . | . . . . . . . . . . . . . . . . . . . . . . Drone Recoveries . | . . . . . . . . . . . . . . . . . . . . . . Exploration | -11 -10 -10 -10 -9 -8 -8 -8 -8 -8 -8 -7 -7 -6 -6 -6 -6 -5 -5 -5 -5 -4 ------------- Run | Jun Mat Min Exi Min Mat Gar Mat Gar Mat Gar Fac Gar Fac Gar Fac Gar Fac Gar Fac Gar Fac Turns Passed 21668 | 74 1504 1011 434 293 996 1232 684 1584 248 1273 247 1085 553 1656 577 1483 1891 1699 160 1352 1632 Spaces Moved 10404 | 42 726 537 274 175 493 578 252 760 122 668 102 532 303 761 310 702 885 790 95 677 620 Core 6 | 6 . . . . . . . . . . . . . . . . . . . . . Treads 9368 | 36 726 276 . . 173 578 252 760 122 668 102 532 303 761 310 702 885 790 95 677 620 Legs . | . . . . . . . . . . . . . . . . . . . . . . Wheels 1030 | . . 261 274 175 320 . . . . . . . . . . . . . . . . Hover . | . . . . . . . . . . . . . . . . . . . . . . Flight . | . . . . . . . . . . . . . . . . . . . . . . Fastest Speed 50 | 50 160 155 155 155 155 160 156 156 156 156 160 160 160 160 165 165 170 165 165 165 165 Average Speed 164 | 149 160 157 155 155 156 160 159 156 156 158 160 165 160 161 165 169 173 166 165 165 191 Slowest Speed 320 | 160 160 160 155 155 160 160 160 156 156 160 160 320 160 165 165 250 250 250 165 165 245 Overloaded Moves . | . . . . . . . . . . . . . . . . . . . . . . Propulsion Burnouts . | . . . . . . . . . . . . . . . . . . . . . . Robots Hopped . | . . . . . . . . . . . . . . . . . . . . . . Cave-ins Triggered . | . . . . . . . . . . . . . . . . . . . . . . Exploration Rate (%) 49 | 5 90 93 69 20 38 85 32 74 20 77 5 58 10 86 11 74 38 83 4 81 30 Regions Visited 21 Branch Regions 3 Pre-discovered Areas 2 | . . 1 1 . . . . . . . . . . . . . . . . . . Known Exits Taken 8 | . . . . . 1 . 1 . 1 . 1 . 1 . 1 . 1 . 1 . . Unknown Exits Taken 5 | 1 1 1 1 1 . . . . . . . . . . . . . . . . . Scrap Searched 2 | . . 1 . 1 . . . . . . . . . . . . . . . . . Spaces Dug 199 | . . . . . 8 11 . 19 . 15 . 5 11 15 7 18 17 13 1 30 29 Terrain Destroyed 625 | . . 44 . 14 8 16 22 31 13 105 . 77 11 52 7 27 38 39 1 36 84 Melee 117 | . . . . . . 8 . 5 . 6 . 4 9 15 7 11 17 11 1 8 15 Projectile 60 | . . . . . . . . 1 . . . 4 2 12 . 7 11 11 . 6 6 AOE 447 | . . 44 . 14 8 8 22 25 13 99 . 69 . 25 . 9 10 17 . 22 62 Terrain Rammed . | . . . . . . . . . . . . . . . . . . . . . . Walls Destroyed . | . . . . . . . . . . . . . . . . . . . . . . Machines Disabled . | . . . . . . . . . . . . . . . . . . . . . . Actions | -11 -10 -10 -10 -9 -8 -8 -8 -8 -8 -8 -7 -7 -6 -6 -6 -6 -5 -5 -5 -5 -4 --------- Run | Jun Mat Min Exi Min Mat Gar Mat Gar Mat Gar Fac Gar Fac Gar Fac Gar Fac Gar Fac Gar Fac Total 13310 | 51 925 612 279 184 618 770 425 1041 176 804 158 683 345 1035 357 875 1137 1037 97 820 881 Wait 1021 | . 86 17 1 . 32 60 83 96 11 22 17 39 10 112 31 66 124 54 2 43 115 Move 10388 | 41 725 536 273 174 493 577 251 759 121 667 102 531 303 760 310 701 885 789 94 676 620 Hop . | . . . . . . . . . . . . . . . . . . . . . . Pick Up 133 | 2 13 3 1 1 13 12 5 13 6 9 2 17 2 4 . 2 6 14 . 1 7 Fast Attach 71 | 7 2 . . . 7 7 3 5 3 3 1 5 1 4 1 5 1 5 . 5 6 Attach 58 | . 3 2 . . 4 5 3 6 2 . 1 7 1 2 . 1 7 8 . 2 4 Detach 32 | 1 2 . . . . 2 1 6 4 . . 3 . 2 . 1 3 4 . 1 2 Swap 266 | . 4 5 . 2 7 11 14 29 10 13 5 15 7 27 3 10 30 32 . 22 20 Drop 123 | . 2 . . . 8 8 9 14 9 18 1 15 2 9 1 5 4 13 . 3 2 Fire 912 | . 80 44 4 6 53 45 56 100 10 61 26 45 9 78 4 47 52 82 . 35 75 Melee 251 | . . . . . . 19 . 10 . 11 2 6 9 35 7 37 21 35 1 31 27 Ram 2 | . . 1 . 1 . . . . . . . . . . . . . . . . . Kick . | . . . . . . . . . . . . . . . . . . . . . . Crush 19 | . 8 4 . . 1 . . 1 . . 1 . 1 . . . 2 . . . 1 Escape Stasis . | . . . . . . . . . . . . . . . . . . . . . . Rewire 34 | . . . . . . 24 . 2 . . . . . 2 . . 2 1 . 1 2 Trap . | . . . . . . . . . . . . . . . . . . . . . . Miscellaneous . | . . . . . . . . . . . . . . . . . . . . . . Route ------- -11/Junkyard -10/Materials (discovered 4 exits: [*Mat x3] / [*Min]) -10/Mines (discovered 4 exits: [*Mat x2] / *Exi / Sub) -10/Exiles -9/Mines -8/Materials (discovered 2 exits: [*Sto] / Gar) -8/Garrison (discovered 3 exits: *Mat x3) -8/Materials (discovered 3 exits: *Fac / [*Sto] / Gar) -8/Garrison (discovered 4 exits: *Fac x3 / *Mat) -8/Materials (discovered 2 exits: [*Sto] / Gar) -8/Garrison (discovered 2 exits: *Fac x2) -7/Factory -7/Garrison (discovered 3 exits: *Fac x3) -6/Factory (discovered 3 exits: Low x2 / Gar) -6/Garrison (discovered 3 exits: *Fac x3) -6/Factory (discovered 2 exits: *Low / Gar) -6/Garrison (discovered 3 exits: *Fac x3) -5/Factory (discovered 3 exits: *Upp x2 / Gar) -5/Garrison (discovered 4 exits: *Fac x3 / *Fac) -5/Factory -5/Garrison (discovered 3 exits: *Fac x3) -4/Factory (discovered 6 exits: [*Res] / *Upp x2 / Ext x2 / Arm) History --------- Turn | Location | Event 18 | -11/Junkyard | Discovered new exit (range 16) 75 | -11/Junkyard | Entered Materials 318 | -10/Materials | Build established: Mutant 482 | -10/Materials | Discovered new exit (range 16) 553 | -10/Materials | Discovered new exit (range 14) 680 | -10/Materials | Discovered new exit (range 16) 1116 | -10/Materials | Core integrity fell below 50% 1341 | -10/Materials | Discovered new exit (range 15) 1579 | -10/Materials | Entered Mines 1658 | -10/Mines | Discovered new exit (range 7) 1737 | -10/Mines | Received a Rocket Launcher from a helpful Derelict 1783 | -10/Mines | Excavation squad dispatched 1783 | -10/Mines | A large section of the Mines collapsed 2394 | -10/Mines | Discovered new exit (range 8) 2441 | -10/Mines | Identified exit to Subcaves 2476 | -10/Mines | Learned 2 Materials zone layouts 2513 | -10/Mines | Learned location of Storage (-8) 2582 | -10/Mines | Deemed a non-threat by the Exiles lab entrance 2583 | -10/Mines | Discovered new exit (range 5) 2590 | -10/Mines | Entered Exiles 2632 | -10/Exiles | Met 8R-AWN 2654 | -10/Exiles | Met EX-HEX 2740 | -10/Exiles | Met EX-DEC 2768 | -10/Exiles | Learned location of Zion (-7) 2798 | -10/Exiles | Met EX-BIN 2824 | -10/Exiles | Aligned with FarCom system 2826 | -10/Exiles | Given EX-Vault access code 2863 | -10/Exiles | Opened EX-Vault 2897 | -10/Exiles | Warned to stay clear of 0b10 Research branches 2995 | -10/Exiles | Attacked by the Exiles 3011 | -10/Exiles | Discovered new exit (range 10) 3024 | -10/Exiles | Entered Mines 3033 | -9/Mines | Met a Derelict bent on vengeance 3221 | -9/Mines | Discovered new exit (range 11) 3228 | -9/Mines | Assisted by bots powering up and referring to "LRC-V3" 3317 | -9/Mines | Entered Materials 3317 | -8/Materials | Accompanied by 3 allies 3317 | -8/Materials | Evolved 4 slots: Propulsion x2, Utility x2 3413 | -8/Materials | Discovered new exit (range 9) 3477 | -8/Materials | Repaired Lgt. Treads? 4197 | -8/Materials | Build established: Scavenger-Mutant 4313 | -8/Materials | Identified exit to Garrison 4313 | -8/Materials | Entered Garrison 4454 | -8/Garrison | Triggered checkpoint 4479 | -8/Garrison | Garrison Relay disabled 4578 | -8/Garrison | Triggered checkpoint 4705 | -8/Garrison | Destroyed 9 combat bots 4745 | -8/Garrison | Garrison Relay disabled 4806 | -8/Garrison | Discovered new exit (range 14) 4868 | -8/Garrison | Triggered checkpoint 4925 | -8/Garrison | Installed Relay Interface Framework 4977 | -8/Garrison | Discovered new exit (range 6) 5160 | -8/Garrison | Discovered new exit (range 10) 5162 | -8/Garrison | Build established: Bothacker-Mutant 5183 | -8/Garrison | Discovered new exit (range 49) 5183 | -8/Garrison | Discovered new exit (range 6) 5183 | -8/Garrison | Discovered new exit (range 75) 5394 | -8/Garrison | Expanded RIF knowledge: Threat Obfuscation 5545 | -8/Garrison | Entered Materials 5953 | -8/Materials | Discovered new exit (range 12) 5962 | -8/Materials | Discovered new exit (range 16) 5996 | -8/Materials | Garrison activated, responded to threat 6221 | -8/Materials | Identified exit to Garrison 6229 | -8/Materials | Entered Garrison 6315 | -8/Garrison | Core integrity fell below 50% 6412 | -8/Garrison | Expanded RIF knowledge: Patrol Navigation 6456 | -8/Garrison | Triggered checkpoint 6513 | -8/Garrison | Garrison Relay disabled 6596 | -8/Garrison | Triggered checkpoint 6717 | -8/Garrison | Discovered new exit (range 8) 6768 | -8/Garrison | Triggered checkpoint 6816 | -8/Garrison | Garrison Relay disabled 6980 | -8/Garrison | Triggered checkpoint 6982 | -8/Garrison | Destroyed 7 combat bots 6999 | -8/Garrison | Discovered new exit (range 14) 7126 | -8/Garrison | Triggered checkpoint 7169 | -8/Garrison | Discovered new exit (range 5) 7300 | -8/Garrison | Discovered new exit (range 56) 7300 | -8/Garrison | Discovered new exit (range 55) 7300 | -8/Garrison | Discovered new exit (range 12) 7300 | -8/Garrison | Discovered new exit (range 31) 7376 | -8/Garrison | Expanded RIF knowledge: Watcher Feeds 7483 | -8/Garrison | Spotted B-75 Beast 7627 | -8/Garrison | Allies destroyed B-75 Beast 7753 | -8/Garrison | Garrison Relay disabled 7813 | -8/Garrison | Entered Materials 7813 | -8/Materials | Accompanied by 3 allies 7947 | -8/Materials | Discovered new exit (range 9) 8030 | -8/Materials | Identified exit to Garrison 8061 | -8/Materials | Entered Garrison 8061 | -8/Garrison | Accompanied by 4 allies 8124 | -8/Garrison | Triggered checkpoint 8166 | -8/Garrison | Triggered checkpoint 8179 | -8/Garrison | Triggered checkpoint 8236 | -8/Garrison | Triggered checkpoint 8260 | -8/Garrison | Triggered checkpoint 8260 | -8/Garrison | Triggered checkpoint 8307 | -8/Garrison | Core integrity fell below 20% 8360 | -8/Garrison | Garrison Relay disabled 8476 | -8/Garrison | Garrison Relay disabled 8647 | -8/Garrison | Phase Generator disabled 8674 | -8/Garrison | Discovered new exit (range 9) 8778 | -8/Garrison | Triggered checkpoint 8870 | -8/Garrison | Expanded RIF knowledge: Alert ID Control 9052 | -8/Garrison | Discovered new exit (range 14) 9088 | -8/Garrison | Expanded RIF knowledge: Coupler Efficiency 9264 | -8/Garrison | Garrison Relay disabled 9334 | -8/Garrison | Entered Factory 9334 | -7/Factory | Evolved 2 slots: Utility x2 9515 | -7/Factory | Garrison activated, responded to threat 9581 | -7/Factory | Identified exit to Garrison 9581 | -7/Factory | Entered Garrison 9581 | -7/Garrison | Accompanied by 1 ally 9589 | -7/Garrison | Warlord forces raided the area 9628 | -7/Garrison | Triggered checkpoint 9628 | -7/Garrison | Triggered checkpoint 9644 | -7/Garrison | Triggered checkpoint 9652 | -7/Garrison | Triggered checkpoint 9694 | -7/Garrison | Triggered checkpoint 9704 | -7/Garrison | Triggered checkpoint 9719 | -7/Garrison | Destroyed 7 combat bots 9818 | -7/Garrison | Triggered checkpoint 9829 | -7/Garrison | Expanded RIF knowledge: Threat Obfuscation 9845 | -7/Garrison | Garrison Relay disabled 9973 | -7/Garrison | Discovered new exit (range 8) 9986 | -7/Garrison | Discovered new exit (range 63) 9986 | -7/Garrison | Discovered new exit (range 6) 9986 | -7/Garrison | Discovered new exit (range 59) 10030 | -7/Garrison | Triggered checkpoint 10180 | -7/Garrison | Lost 4 parts (1p3n) 10666 | -7/Garrison | Entered Factory 10666 | -6/Factory | Evolved 2 slots: Power x1, Weapon x1 10679 | -6/Factory | Found Hvy. Reactive Plating 10871 | -6/Factory | Build established: Botlord-Mutant 10992 | -6/Factory | Identified exit to Lower Caves 11219 | -6/Factory | Identified exit to Garrison 11219 | -6/Factory | Entered Garrison 11219 | -6/Garrison | Accompanied by 2 allies 11306 | -6/Garrison | Expanded RIF knowledge: Autooverride 11354 | -6/Garrison | Triggered checkpoint 11684 | -6/Garrison | Triggered checkpoint 11734 | -6/Garrison | Triggered checkpoint 11755 | -6/Garrison | Destroyed 12 combat bots 11848 | -6/Garrison | Triggered checkpoint 11882 | -6/Garrison | Triggered checkpoint 11966 | -6/Garrison | Garrison Relay disabled 11986 | -6/Garrison | Triggered checkpoint 12030 | -6/Garrison | Discovered new exit (range 3) 12199 | -6/Garrison | Triggered checkpoint 12258 | -6/Garrison | Discovered new exit (range 10) 12286 | -6/Garrison | Triggered checkpoint 12330 | -6/Garrison | Garrison Relay disabled 12375 | -6/Garrison | Spotted B-75 Beast 12383 | -6/Garrison | Rewired B-90 Cyclops 12432 | -6/Garrison | Rewired B-75 Beast 12642 | -6/Garrison | Discovered new exit (range 15) 12725 | -6/Garrison | Found embedded Infiltrators 12875 | -6/Garrison | Entered Factory 12875 | -6/Factory | Accompanied by 5 allies 13191 | -6/Factory | Discovered exit to Lower Caves (range 15) 13447 | -6/Factory | Identified exit to Garrison 13452 | -6/Factory | Entered Garrison 13452 | -6/Garrison | Accompanied by 3 allies 13476 | -6/Garrison | Spotted B-86 Titan 13487 | -6/Garrison | Destroyed B-86 Titan 13526 | -6/Garrison | Rewired B-90 Cyclops 13604 | -6/Garrison | Triggered checkpoint 13815 | -6/Garrison | Discovered new exit (range 10) 13831 | -6/Garrison | Triggered checkpoint 13861 | -6/Garrison | Garrison Relay disabled 14063 | -6/Garrison | Discovered new exit (range 14) 14130 | -6/Garrison | Triggered checkpoint 14217 | -6/Garrison | Triggered checkpoint 14234 | -6/Garrison | Discovered new exit (range 14) 14305 | -6/Garrison | Triggered checkpoint 14333 | -6/Garrison | Garrison Relay disabled 14518 | -6/Garrison | Triggered checkpoint 14582 | -6/Garrison | Expanded RIF knowledge: Threat Obfuscation 14608 | -6/Garrison | Garrison Relay disabled 14935 | -6/Garrison | Entered Factory 14935 | -5/Factory | Accompanied by 1 ally 14935 | -5/Factory | Evolved 2 slots: Utility x2 15061 | -5/Factory | Fabricated B-60 Warrior? 15529 | -5/Factory | P-70 Sage assimilated allied Warrior 6b 15531 | -5/Factory | P-70 Sage assimilated allied Soldier 6c 15678 | -5/Factory | Discovered new exit (range 101) 16319 | -5/Factory | Discovered new exit (range 34) 16474 | -5/Factory | Identified exit to Upper Caves 16826 | -5/Factory | Identified exit to Garrison 16826 | -5/Factory | Entered Garrison 16843 | -5/Garrison | Triggered checkpoint 16914 | -5/Garrison | Discovered new exit (range 6) 17036 | -5/Garrison | Triggered checkpoint 17091 | -5/Garrison | Garrison Relay disabled 17172 | -5/Garrison | Triggered checkpoint 17290 | -5/Garrison | Discovered new exit (range 13) 17336 | -5/Garrison | Triggered checkpoint 17366 | -5/Garrison | Garrison Relay disabled 17440 | -5/Garrison | System corruption reached 10% 17510 | -5/Garrison | Triggered checkpoint 17548 | -5/Garrison | Triggered checkpoint 17572 | -5/Garrison | Triggered checkpoint 17573 | -5/Garrison | P-70 Sage assimilated allied Soldier 6f 17645 | -5/Garrison | Discovered new exit (range 8) 17656 | -5/Garrison | Triggered checkpoint 17743 | -5/Garrison | Expanded RIF knowledge: Code Merge 17844 | -5/Garrison | Garrison Relay disabled 18031 | -5/Garrison | Found Fusion Bomb Launcher 18033 | -5/Garrison | Found Fusion Bomb Launcher 18041 | -5/Garrison | Spotted B-75 Beast 18048 | -5/Garrison | Allies destroyed B-75 Beast 18192 | -5/Garrison | Triggered checkpoint 18216 | -5/Garrison | Garrison Relay disabled 18275 | -5/Garrison | Discovered new exit (range 10) 18525 | -5/Garrison | Entered Factory 18525 | -5/Factory | Accompanied by 4 allies 18575 | -5/Factory | Identified exit to Garrison 18685 | -5/Factory | Entered Garrison 18685 | -5/Garrison | Accompanied by 4 allies 18710 | -5/Garrison | Triggered checkpoint 18714 | -5/Garrison | Garrison Relay disabled 18759 | -5/Garrison | Garrison Relay disabled 18841 | -5/Garrison | Triggered checkpoint 18850 | -5/Garrison | Triggered checkpoint 18851 | -5/Garrison | Triggered checkpoint 18950 | -5/Garrison | Discovered new exit (range 10) 19009 | -5/Garrison | Expanded RIF knowledge: Hotswap 19059 | -5/Garrison | Expanded RIF knowledge: Autooverride 19181 | -5/Garrison | Discovered new exit (range 13) 19240 | -5/Garrison | Triggered checkpoint 19295 | -5/Garrison | Garrison Relay disabled 19316 | -5/Garrison | Triggered checkpoint 19376 | -5/Garrison | Triggered checkpoint 19473 | -5/Garrison | Discovered new exit (range 13) 19506 | -5/Garrison | Triggered checkpoint 19530 | -5/Garrison | Garrison Relay disabled 19728 | -5/Garrison | Rescued a captive Derelict 19728 | -5/Garrison | Rescued a captive Derelict 19802 | -5/Garrison | Spotted Striker 19802 | -5/Garrison | Spotted Striker 19849 | -5/Garrison | Destroyed Striker 20037 | -5/Garrison | Entered Factory 20037 | -4/Factory | Evolved 2 slots: Utility x2 20120 | -4/Factory | Repaired Arm. Heavy Treads 20220 | -4/Factory | Identified exit to Upper Caves 20220 | -4/Factory | Identified exit to Extension 20220 | -4/Factory | Identified exit to Armory 20256 | -4/Factory | Found Quantum Capacitor 20878 | -4/Factory | Discovered new exit (range 9) 20884 | -4/Factory | P-70 Sage assimilated allied Sentinel 7a 21669 | -4/Factory | Self-destructed Last Messages --------------- Investigation squad. 21648_ Assembly Bed disabled. 21649_ K-01 Serf cleans the Megafabricator. 21649_ K-01 Serf collects debris. 21653_ System corrupted: Energy discharge (-68). 21654_ Slug penetrates Assembly Bed. 21654_ K-01 Serf cleans the Garrison Access. 21654_ K-01 Serf cleans the Megafabricator. 21656_ Slug penetrates G-67 Veteran. 21656_ K-01 Serf signal jammed. 21657_ K-01 Serf distress signal jammed. 21657_ K-01 Serf cleans the Megafabricator. 21658_ Sentinel 7b destroyed. 21659_ Acquired 86 matter. 21661_ K-01 Serf collects debris. 21662_ Activated siege mode. 21662_ ALERT: Rogue bot located, Programmers report to Factory Zone 3N. 21664_ K-01 Serf collects debris. 21666_ R-10 Processor collects Adv. Heat Sink. 21667_ K-01 Serf collects debris. Map ----- +----------------------------------------------------+ | # #?????????????????? # | | + #??????????????????"" # | | < # #??????????????????"" # | | # """ """ #??????????????????"" # """""" " | | # """S""" #?????????????????? + """""" " | | ###### #?????????????????? # """""" " | | ?????###########??????????????????###### """""" " | | ?????????????????????????????????? #?# """""" " | | #######################??????????? #?# """""" " | | ?????????? #?# """""" " | | ???????? #?# """""" " | | ????????????# """""" " | | #####"# ##??????# ??????????? | | # #???????# ????? ?? | | / # #???????# ????? | | # #???????# "????" | | # #???????# "????" ##" | | ! # #???????# ""???" ?# | | # #???????# ""???" ???# | | # #???????# ? """?? ?# | | # #???????# """""" """ ??# | | ! # #???????# """""" """ ???# | | # #???????# """""" ???# | | # #???????# "g"""" ???# | | !# #???????# R ?? ???# | | # #???????# @"""""" ####+####### | | ####### ######### """""" # | | ??????# """" """""" # """ """ " | | ???#### ""F" gp"" " # """ """ " | | ####### ! g # """ """ " | | # = R " " # | | ! # """""" """"""k p ""G"" # | | ! # """""" """""" # ! | | #%!"""""" """""" u # | | = #!!"""""" """""" k ###+################ | | ! # """""? """""" # #?????# | | ! # """""? "?"""" # """ """ #?????# | | [ = # """"???"??"""R # """ """????##### | | +###### """???????""" # """ """????# | | [ """"???????"" # ????# """ | | ???? # """ """????# ""R | | ! ???? # """ "??????# "" | | ???? # ""?????????# | | ?????? # ??????????# [ | | ############## ?????? # ??????????#/ | | ??????????????????????????????# ??????????# | | ??????????????????????????????# ??????????# | | ??????????????????????????????#####??????????? | | ?????###########??????????????????????????????= | | ?????# """ """ #??????????????????????????????? ! | +----------------------------------------------------+ Best States ------------- Heat Dissipation 74 Energy Generation 34 Energy Capacity 360 Matter Stores 300 Matter Capacity 300 Sight Range 16 Terrain Scan Density 10 Jamming Range 16 Armor Coverage 1200 Resistance: KI 40 Evasion (%) 40 Targeting Accuracy 8 Target Analysis 5 Recoil Reduction 4 Offensive Hacking 14 Defensive Hacking 10 Relay Coupler Types 3 Relay Coupler Value 123 Item Schematics ----------------- None Robot Schematics ------------------ D-63 Destroyer | -5/Factory | Hacked Fabricated ------------ B-60 Warrior | x3 | -5/Factory | Preloaded Alien Tech Used ----------------- None Achievements -------------- None Challenges ------------ None Game ------ Seed ContainmentAuthchipNullifier Manual? 0 Play Time 03:03:57 Cumulative 540.5 hours Start 2023.12.13 @ 18:30:53 End 2023.12.18 @ 16:04:37 Sessions 5 Manual Loads 0 Difficulty Rogue Special Mode None Game No. 592 Rogue 505 Adventurer 87 Explorer 0 Win Type - Total 30 Types 8/0/16/1/1/1/3/0/0 Lore% 92 Gallery% 94 Achievement% 79 Wizard Run 0 Options --------- ASCII 0 Keyboard 1 Movement Numpad Keybinds 0 Fullscreen 1 Font 18/Terminus Map View 76x50 Tactical HUD 1 Map Filters NONE Filters NONE Steam 1 RUN: 4720e9b7-3a72-4a82-8a6b-ebd309188788